[Event "Titled Tuesday Blitz April 26 Early 2022"]
[White "Maksimenko, Viktor"]
[Black "Odegov, Artem"]
[WhiteFideId "13710478"]
[BlackFideId "34183644"]
[WhiteElo "2269"]
[BlackElo "2286"]
[Result "0-1"]
[Round "04"]
[TimeControl "180+1"]
[Date "2022.04.26"]
[WhiteClock "0:00:02"]
[BlackClock "0:00:24"]

1. d4 {[%clk 0:03:00]}  Nf6 {[%clk 0:02:54]} 2. c4 {[%clk 0:03:01]}  e6 {[%clk 0:02:55]} 3. g3 {[%clk 0:03:01]}  d5 {[%clk 0:02:55]} 4. Bg2 {[%clk 0:03:01]}  c5 {[%clk 0:02:55]} 5. cxd5 {[%clk 0:03:00]}  exd5 {[%clk 0:02:56]} 6. Nf3 {[%clk 0:03:01]}  Nc6 {[%clk 0:02:56]} 7. O-O {[%clk 0:03:01]}  Be7 {[%clk 0:02:56]} 8. Nc3 {[%clk 0:03:00]}  O-O {[%clk 0:02:56]} 9. Bg5 {[%clk 0:03:00]}  cxd4 {[%clk 0:02:54]} 10. Nxd4 {[%clk 0:03:01]}  h6 {[%clk 0:02:55]} 11. Be3 {[%clk 0:02:59]}  Be6 {[%clk 0:02:51]} 12. Rc1 {[%clk 0:02:54]}  Rc8 {[%clk 0:02:50]} 13. Qa4 {[%clk 0:02:49]}  Qd7 {[%clk 0:02:50]} 14. Rfd1 {[%clk 0:02:25]}  Bh3 {[%clk 0:02:45]} 15. Nxc6 {[%clk 0:01:56]}  bxc6 {[%clk 0:02:43]} 16. Qxa7 {[%clk 0:01:55]}  Rc7 {[%clk 0:02:33]} 17. Qd4 {[%clk 0:01:24]}  Bxg2 {[%clk 0:02:29]} 18. Kxg2 {[%clk 0:01:24]}  c5 {[%clk 0:02:27]} 19. Qa4 {[%clk 0:01:10]}  d4 {[%clk 0:02:05]} 20. Bf4 {[%clk 0:01:09]}  Rc6 {[%clk 0:01:55]} 21. Kg1 {[%clk 0:00:39]}  Rfc8 {[%clk 0:01:46]} 22. Nb1 {[%clk 0:00:37]}  Qh3 {[%clk 0:01:41]} 23. Nd2 {[%clk 0:00:37]}  g5 {[%clk 0:01:36]} 24. Be5 {[%clk 0:00:37]}  Ng4 {[%clk 0:01:35]} 25. Nf3 {[%clk 0:00:37]}  Re6 {[%clk 0:01:25]} 26. Qd7 {[%clk 0:00:33]}  Rf8 {[%clk 0:01:23]} 27. Bxd4 {[%clk 0:00:23]}  cxd4 {[%clk 0:01:20]} 28. Rxd4 {[%clk 0:00:23]}  Bf6 {[%clk 0:01:06]} 29. Rd2 {[%clk 0:00:15]}  Bg7 {[%clk 0:00:49]} 30. a4 {[%clk 0:00:13]}  Nf6 {[%clk 0:00:45]} 31. Qb7 {[%clk 0:00:13]}  Ne4 {[%clk 0:00:44]} 32. Rdc2 {[%clk 0:00:10]}  g4 {[%clk 0:00:37]} 33. Nd2 {[%clk 0:00:11]}  Nxf2 {[%clk 0:00:34]} 34. Kxf2 {[%clk 0:00:10]}  Qxh2+ {[%clk 0:00:34]} 35. Kf1 {[%clk 0:00:09]}  Rxe2 {[%clk 0:00:26]} 36. Ne4 {[%clk 0:00:02]}  Qg2# {[%clk 0:00:24]} 0-1


[Site "https://www.chess.com"]

[Event "Titled Tuesday Blitz April 26 Early 2022"]
[White "Martic, Ivan"]
[Black "Vasquez Schroeder, Rodrigo"]
[WhiteFideId "929301"]
[BlackFideId "3400042"]
[WhiteElo "2317"]
[BlackElo "2561"]
[Result "1/2-1/2"]
[Round "04"]
[TimeControl "180+1"]
[Date "2022.04.26"]
[WhiteClock "0:00:04"]
[BlackClock "0:01:17"]

1. e4 {[%clk 0:03:00]}  c5 {[%clk 0:02:59]} 2. Nf3 {[%clk 0:03:00]}  d6 {[%clk 0:02:59]} 3. Bc4 {[%clk 0:02:59]}  Nc6 {[%clk 0:02:58]} 4. d3 {[%clk 0:02:58]}  Nf6 {[%clk 0:02:57]} 5. O-O {[%clk 0:02:58]}  g6 {[%clk 0:02:54]} 6. c3 {[%clk 0:02:58]}  Bg7 {[%clk 0:02:55]} 7. Bb3 {[%clk 0:02:58]}  O-O {[%clk 0:02:54]} 8. h3 {[%clk 0:02:57]}  b5 {[%clk 0:02:49]} 9. Re1 {[%clk 0:02:54]}  Rb8 {[%clk 0:02:46]} 10. d4 {[%clk 0:02:50]}  e5 {[%clk 0:02:36]} 11. d5 {[%clk 0:02:10]}  Ne7 {[%clk 0:02:35]} 12. a4 {[%clk 0:02:07]}  c4 {[%clk 0:02:32]} 13. Bc2 {[%clk 0:02:07]}  a6 {[%clk 0:02:32]} 14. axb5 {[%clk 0:02:07]}  axb5 {[%clk 0:02:33]} 15. Bg5 {[%clk 0:02:01]}  h6 {[%clk 0:02:32]} 16. Be3 {[%clk 0:02:00]}  Nd7 {[%clk 0:02:32]} 17. Qd2 {[%clk 0:01:48]}  Kh7 {[%clk 0:02:31]} 18. b4 {[%clk 0:01:44]}  cxb3 {[%clk 0:02:29]} 19. Bxb3 {[%clk 0:01:44]}  Qc7 {[%clk 0:02:29]} 20. Ra7 {[%clk 0:01:42]}  Rb7 {[%clk 0:02:29]} 21. Rxb7 {[%clk 0:01:42]}  Bxb7 {[%clk 0:02:29]} 22. Na3 {[%clk 0:01:42]}  Ba6 {[%clk 0:02:28]} 23. Bd1 {[%clk 0:01:14]}  Rc8 {[%clk 0:02:23]} 24. Be2 {[%clk 0:01:11]}  Qa5 {[%clk 0:02:11]} 25. Qb2 {[%clk 0:01:08]}  Qxc3 {[%clk 0:02:01]} 26. Qxc3 {[%clk 0:01:06]}  Rxc3 {[%clk 0:02:02]} 27. Nxb5 {[%clk 0:01:05]}  Bxb5 {[%clk 0:02:02]} 28. Bxb5 {[%clk 0:01:06]}  Nc5 {[%clk 0:01:59]} 29. Nd2 {[%clk 0:01:00]}  Ng8 {[%clk 0:01:56]} 30. f3 {[%clk 0:00:48]}  h5 {[%clk 0:01:56]} 31. Nc4 {[%clk 0:00:43]}  Bf8 {[%clk 0:01:55]} 32. Bxc5 {[%clk 0:00:39]}  dxc5 {[%clk 0:01:53]} 33. Nxe5 {[%clk 0:00:40]}  Kg7 {[%clk 0:01:52]} 34. Nd7 {[%clk 0:00:36]}  c4 {[%clk 0:01:51]} 35. Nxf8 {[%clk 0:00:25]}  Kxf8 {[%clk 0:01:51]} 36. d6 {[%clk 0:00:25]}  Nf6 {[%clk 0:01:44]} 37. e5 {[%clk 0:00:24]}  Nd5 {[%clk 0:01:44]} 38. Rd1 {[%clk 0:00:20]}  Rd3 {[%clk 0:01:40]} 39. Rxd3 {[%clk 0:00:19]}  cxd3 {[%clk 0:01:41]} 40. Bxd3 {[%clk 0:00:20]}  Nf4 {[%clk 0:01:40]} 41. Bc4 {[%clk 0:00:19]}  g5 {[%clk 0:01:39]} 42. Kf2 {[%clk 0:00:18]}  Ng6 {[%clk 0:01:40]} 43. e6 {[%clk 0:00:17]}  fxe6 {[%clk 0:01:40]} 44. Bxe6 {[%clk 0:00:18]}  Ne5 {[%clk 0:01:39]} 45. Ke3 {[%clk 0:00:16]}  Ke8 {[%clk 0:01:37]} 46. Ke4 {[%clk 0:00:17]}  Nc6 {[%clk 0:01:36]} 47. g3 {[%clk 0:00:13]}  h4 {[%clk 0:01:32]} 48. g4 {[%clk 0:00:11]}  Nd8 {[%clk 0:01:30]} 49. Bd5 {[%clk 0:00:10]}  Kd7 {[%clk 0:01:30]} 50. Ke5 {[%clk 0:00:10]}  Ke8 {[%clk 0:01:30]} 51. Be6 {[%clk 0:00:10]}  Nc6+ {[%clk 0:01:30]} 52. Kf6 {[%clk 0:00:10]}  Nd4 {[%clk 0:01:28]} 53. Bd5 {[%clk 0:00:09]}  Kd7 {[%clk 0:01:28]} 54. Kxg5 {[%clk 0:00:10]}  Kxd6 {[%clk 0:01:28]} 55. Be4 {[%clk 0:00:10]}  Ne6+ {[%clk 0:01:28]} 56. Kxh4 {[%clk 0:00:10]}  Ke5 {[%clk 0:01:29]} 57. Kg3 {[%clk 0:00:10]}  Nf4 {[%clk 0:01:29]} 58. h4 {[%clk 0:00:10]}  Ne2+ {[%clk 0:01:29]} 59. Kf2 {[%clk 0:00:11]}  Nf4 {[%clk 0:01:30]} 60. h5 {[%clk 0:00:11]}  Kf6 {[%clk 0:01:30]} 61. Kg3 {[%clk 0:00:10]}  Kg5 {[%clk 0:01:31]} 62. Bc2 {[%clk 0:00:10]}  Ne2+ {[%clk 0:01:31]} 63. Kf2 {[%clk 0:00:10]}  Nd4 {[%clk 0:01:31]} 64. Bd3 {[%clk 0:00:10]}  Ne6 {[%clk 0:01:32]} 65. Ke3 {[%clk 0:00:10]}  Nf4 {[%clk 0:01:32]} 66. Be4 {[%clk 0:00:10]}  Ng2+ {[%clk 0:01:32]} 67. Kd4 {[%clk 0:00:10]}  Kf6 {[%clk 0:01:32]} 68. Kd5 {[%clk 0:00:10]}  Nf4+ {[%clk 0:01:32]} 69. Kd6 {[%clk 0:00:10]}  Ne6 {[%clk 0:01:33]} 70. h6 {[%clk 0:00:10]}  Ng5 {[%clk 0:01:33]} 71. h7 {[%clk 0:00:10]}  Kg7 {[%clk 0:01:32]} 72. Ke5 {[%clk 0:00:09]}  Nf7+ {[%clk 0:01:31]} 73. Ke6 {[%clk 0:00:08]}  Ng5+ {[%clk 0:01:31]} 74. Ke7 {[%clk 0:00:09]}  Nf7 {[%clk 0:01:29]} 75. f4 {[%clk 0:00:09]}  Nh8 {[%clk 0:01:28]} 76. g5 {[%clk 0:00:08]}  Nf7 {[%clk 0:01:26]} 77. g6 {[%clk 0:00:08]}  Nh6 {[%clk 0:01:24]} 78. f5 {[%clk 0:00:08]}  Kh8 {[%clk 0:01:24]} 79. Kf8 {[%clk 0:00:07]}  Nxf5 {[%clk 0:01:23]} 80. g7+ {[%clk 0:00:07]}  Nxg7 {[%clk 0:01:24]} 81. Kf7 {[%clk 0:00:04]}  Nh5 {[%clk 0:01:22]} 82. Kg6 {[%clk 0:00:04]}  Nf6 {[%clk 0:01:17]} 83. Bd3 {[%clk 0:00:04]}  Nxh7 {[%clk 0:01:17]} 1/2-1/2


[Site "https://www.chess.com"]

[Event "Titled Tuesday Blitz April 26 Early 2022"]
[White "Melaugh, Shane"]
[Black "Ning, Kaiyu"]
[WhiteFideId "2509580"]
[BlackFideId "8614750"]
[WhiteElo "1972"]
[BlackElo "2013"]
[Result "0-1"]
[Round "04"]
[TimeControl "180+1"]
[Date "2022.04.26"]
[WhiteClock "0:00:03"]
[BlackClock "0:00:07"]

1. c4 {[%clk 0:03:00]}  e5 {[%clk 0:02:58]} 2. Nc3 {[%clk 0:03:00]}  Nf6 {[%clk 0:02:59]} 3. Nf3 {[%clk 0:03:01]}  Nc6 {[%clk 0:02:59]} 4. e4 {[%clk 0:03:01]}  Bb4 {[%clk 0:02:58]} 5. d3 {[%clk 0:03:00]}  d6 {[%clk 0:02:58]} 6. h3 {[%clk 0:02:58]}  Bc5 {[%clk 0:02:58]} 7. Be2 {[%clk 0:02:57]}  O-O {[%clk 0:02:55]} 8. Be3 {[%clk 0:02:58]}  a6 {[%clk 0:02:52]} 9. O-O {[%clk 0:02:52]}  h6 {[%clk 0:02:38]} 10. a3 {[%clk 0:02:32]}  Be6 {[%clk 0:02:36]} 11. b4 {[%clk 0:02:32]}  Ba7 {[%clk 0:02:21]} 12. Ne1 {[%clk 0:02:00]}  Nd7 {[%clk 0:02:18]} 13. Bxa7 {[%clk 0:01:52]}  Rxa7 {[%clk 0:02:19]} 14. f4 {[%clk 0:01:52]}  f5 {[%clk 0:02:19]} 15. Nd5 {[%clk 0:01:46]}  Nd4 {[%clk 0:02:15]} 16. fxe5 {[%clk 0:01:40]}  Nxe5 {[%clk 0:02:15]} 17. exf5 {[%clk 0:01:37]}  Bxf5 {[%clk 0:02:13]} 18. Rf4 {[%clk 0:01:18]}  Ne6 {[%clk 0:01:47]} 19. Rf1 {[%clk 0:01:05]}  Qg5 {[%clk 0:01:43]} 20. Qc1 {[%clk 0:00:51]}  Qh4 {[%clk 0:01:36]} 21. Qe3 {[%clk 0:00:48]}  Raa8 {[%clk 0:01:32]} 22. Nf3 {[%clk 0:00:43]}  Nxf3+ {[%clk 0:01:25]} 23. Rxf3 {[%clk 0:00:44]}  Rae8 {[%clk 0:01:23]} 24. Qf2 {[%clk 0:00:11]}  Qd4 {[%clk 0:01:23]} 25. Rf1 {[%clk 0:00:10]}  c6 {[%clk 0:01:06]} 26. Ne3 {[%clk 0:00:07]}  Bxd3 {[%clk 0:01:01]} 27. Bxd3 {[%clk 0:00:04]}  Qxd3 {[%clk 0:00:59]} 28. Nf5 {[%clk 0:00:05]}  Qe4 {[%clk 0:00:24]} 29. Qg3 {[%clk 0:00:05]}  Qe5 {[%clk 0:00:18]} 30. Nxd6 {[%clk 0:00:02]}  Qd4+ {[%clk 0:00:10]} 31. Kh1 {[%clk 0:00:01]}  Rxf3 {[%clk 0:00:10]} 32. Rxf3 {[%clk 0:00:02]}  Rd8 {[%clk 0:00:09]} 33. Nf5 {[%clk 0:00:01]}  Qa1+ {[%clk 0:00:08]} 34. Kh2 {[%clk 0:00:02]}  Ng5 {[%clk 0:00:09]} 35. h4 {[%clk 0:00:01]}  Nxf3+ {[%clk 0:00:08]} 36. Qxf3 {[%clk 0:00:02]}  Qe5+ {[%clk 0:00:08]} 37. Ng3 {[%clk 0:00:01]}  Rf8 {[%clk 0:00:07]} 38. c5 {[%clk 0:00:02]}  Rxf3 {[%clk 0:00:07]} 39. gxf3 {[%clk 0:00:03]} 0-1


[Site "https://www.chess.com"]

[Event "Titled Tuesday Blitz April 26 Early 2022"]
[White "Mihailidis, Anastasios"]
[Black "Nozdrachev, Leonid"]
[WhiteFideId "4205588"]
[BlackFideId "24113433"]
[WhiteElo "2312"]
[BlackElo "2242"]
[Result "0-1"]
[Round "04"]
[TimeControl "180+1"]
[Date "2022.04.26"]
[WhiteClock "0:02:06"]
[BlackClock "0:02:00"]

1. e4 {[%clk 0:03:00]}  d6 {[%clk 0:02:57]} 2. d4 {[%clk 0:03:00]}  Nf6 {[%clk 0:02:57]} 3. Bd3 {[%clk 0:03:00]}  Nc6 {[%clk 0:02:53]} 4. Ne2 {[%clk 0:02:59]}  d5 {[%clk 0:02:50]} 5. e5 {[%clk 0:02:58]}  Ne4 {[%clk 0:02:50]} 6. Bxe4 {[%clk 0:02:58]}  dxe4 {[%clk 0:02:49]} 7. Be3 {[%clk 0:02:57]}  Bg4 {[%clk 0:02:47]} 8. c3 {[%clk 0:02:54]}  f6 {[%clk 0:02:41]} 9. exf6 {[%clk 0:02:53]}  exf6 {[%clk 0:02:42]} 10. O-O {[%clk 0:02:53]}  Bd6 {[%clk 0:02:40]} 11. Nd2 {[%clk 0:02:48]}  f5 {[%clk 0:02:40]} 12. h3 {[%clk 0:02:47]}  Bh5 {[%clk 0:02:36]} 13. Re1 {[%clk 0:02:40]}  f4 {[%clk 0:02:26]} 14. Nxe4 {[%clk 0:02:31]}  fxe3 {[%clk 0:02:24]} 15. Nxd6+ {[%clk 0:02:28]}  Qxd6 {[%clk 0:02:25]} 16. Ng3 {[%clk 0:02:23]}  Bxd1 {[%clk 0:02:21]} 17. Rxe3+ {[%clk 0:02:21]}  Kd7 {[%clk 0:02:15]} 18. Rxd1 {[%clk 0:02:19]}  Rae8 {[%clk 0:02:14]} 19. Rde1 {[%clk 0:02:19]}  Rxe3 {[%clk 0:02:13]} 20. Rxe3 {[%clk 0:02:19]}  Re8 {[%clk 0:02:13]} 21. Ne4 {[%clk 0:02:13]}  Qd5 {[%clk 0:02:05]} 22. Nc5+ {[%clk 0:02:12]}  Qxc5 {[%clk 0:02:05]} 23. dxc5 {[%clk 0:02:10]}  Rxe3 {[%clk 0:02:06]} 24. fxe3 {[%clk 0:02:11]}  Ke6 {[%clk 0:02:02]} 25. e4 {[%clk 0:02:11]}  Ke5 {[%clk 0:02:02]} 26. Kf2 {[%clk 0:02:10]}  Kxe4 {[%clk 0:02:02]} 27. Ke2 {[%clk 0:02:10]}  a5 {[%clk 0:02:01]} 28. a3 {[%clk 0:02:08]}  a4 {[%clk 0:02:00]} 29. Kd2 {[%clk 0:02:07]}  Kd5 {[%clk 0:02:00]} 30. Kd3 {[%clk 0:02:06]} 0-1


[Site "https://www.chess.com"]

[Event "Titled Tuesday Blitz April 26 Early 2022"]
[White "Miszler, Levente"]
[Black "Shtyka, Sergey"]
[WhiteFideId "763276"]
[BlackFideId "4138465"]
[WhiteElo "1966"]
[BlackElo "2014"]
[Result "0-1"]
[Round "04"]
[TimeControl "180+1"]
[Date "2022.04.26"]
[WhiteClock "0:00:39"]
[BlackClock "0:00:52"]

1. Nf3 {[%clk 0:03:00]}  c5 {[%clk 0:03:00]} 2. c4 {[%clk 0:02:56]}  Nc6 {[%clk 0:02:59]} 3. Nc3 {[%clk 0:02:56]}  g6 {[%clk 0:03:00]} 4. d4 {[%clk 0:02:54]}  cxd4 {[%clk 0:03:01]} 5. Nxd4 {[%clk 0:02:55]}  Bg7 {[%clk 0:03:01]} 6. Nxc6 {[%clk 0:02:54]}  bxc6 {[%clk 0:03:01]} 7. g3 {[%clk 0:02:55]}  e6 {[%clk 0:02:57]} 8. Bg2 {[%clk 0:02:54]}  d5 {[%clk 0:02:57]} 9. O-O {[%clk 0:02:54]}  Ne7 {[%clk 0:02:54]} 10. Bg5 {[%clk 0:02:50]}  O-O {[%clk 0:02:51]} 11. Qb3 {[%clk 0:02:46]}  h6 {[%clk 0:02:31]} 12. Bf4 {[%clk 0:02:34]}  Ba6 {[%clk 0:02:28]} 13. c5 {[%clk 0:02:21]}  e5 {[%clk 0:02:21]} 14. Bd2 {[%clk 0:02:16]}  d4 {[%clk 0:02:10]} 15. Ne4 {[%clk 0:02:09]}  Bxe2 {[%clk 0:02:04]} 16. Rfe1 {[%clk 0:02:09]}  Bg4 {[%clk 0:01:53]} 17. Qa3 {[%clk 0:01:26]}  Be6 {[%clk 0:01:45]} 18. Ba5 {[%clk 0:01:19]}  Qd7 {[%clk 0:01:37]} 19. Rad1 {[%clk 0:01:14]}  f5 {[%clk 0:01:31]} 20. Nd6 {[%clk 0:01:14]}  Kh7 {[%clk 0:01:25]} 21. Bf1 {[%clk 0:01:11]}  e4 {[%clk 0:01:14]} 22. Bc4 {[%clk 0:01:02]}  Bxc4 {[%clk 0:01:13]} 23. Nxc4 {[%clk 0:01:02]}  d3 {[%clk 0:01:06]} 24. Bc3 {[%clk 0:00:55]}  Nd5 {[%clk 0:01:02]} 25. Bxg7 {[%clk 0:00:54]}  Qxg7 {[%clk 0:01:02]} 26. f3 {[%clk 0:00:39]}  Qd4+ {[%clk 0:00:52]} 0-1


[Site "https://www.chess.com"]

[Event "Titled Tuesday Blitz April 26 Early 2022"]
[White "Mohammadian, Mohammad"]
[Black "Clawitter, Craig"]
[WhiteFideId "12566055"]
[BlackFideId "2023105"]
[WhiteElo "1544"]
[BlackElo "2240"]
[Result "0-1"]
[Round "04"]
[TimeControl "180+1"]
[Date "2022.04.26"]
[WhiteClock "0:00:02"]
[BlackClock "0:00:21"]

1. e4 {[%clk 0:03:00]}  e6 {[%clk 0:02:59]} 2. d4 {[%clk 0:02:59]}  d5 {[%clk 0:03:00]} 3. Nd2 {[%clk 0:02:58]}  Be7 {[%clk 0:03:00]} 4. c3 {[%clk 0:02:56]}  c5 {[%clk 0:02:59]} 5. exd5 {[%clk 0:02:50]}  exd5 {[%clk 0:02:59]} 6. dxc5 {[%clk 0:02:50]}  Nf6 {[%clk 0:02:59]} 7. Ngf3 {[%clk 0:02:49]}  O-O {[%clk 0:02:58]} 8. b4 {[%clk 0:02:43]}  a5 {[%clk 0:02:55]} 9. Bb2 {[%clk 0:02:37]}  b6 {[%clk 0:02:48]} 10. cxb6 {[%clk 0:02:35]}  axb4 {[%clk 0:02:48]} 11. cxb4 {[%clk 0:02:29]}  Bxb4 {[%clk 0:02:43]} 12. Bd3 {[%clk 0:02:14]}  Re8+ {[%clk 0:02:36]} 13. Be2 {[%clk 0:02:07]}  Ba6 {[%clk 0:02:29]} 14. Nd4 {[%clk 0:01:37]}  Ne4 {[%clk 0:02:19]} 15. O-O {[%clk 0:01:18]}  Bxe2 {[%clk 0:01:52]} 16. Qxe2 {[%clk 0:01:09]}  Nxd2 {[%clk 0:01:49]} 17. Qg4 {[%clk 0:00:59]}  Bf8 {[%clk 0:00:50]} 18. Nf5 {[%clk 0:00:55]}  g6 {[%clk 0:00:49]} 19. Rfd1 {[%clk 0:00:45]}  Nc4 {[%clk 0:00:42]} 20. Bd4 {[%clk 0:00:32]}  Nc6 {[%clk 0:00:38]} 21. Bc3 {[%clk 0:00:23]}  Qxb6 {[%clk 0:00:37]} 22. Rxd5 {[%clk 0:00:22]}  N4e5 {[%clk 0:00:23]} 23. Bxe5 {[%clk 0:00:20]}  Nxe5 {[%clk 0:00:23]} 24. Qd4 {[%clk 0:00:18]}  Qxd4 {[%clk 0:00:21]} 25. Rxd4 {[%clk 0:00:17]}  gxf5 {[%clk 0:00:21]} 26. Rd5 {[%clk 0:00:12]}  Bg7 {[%clk 0:00:21]} 27. Rad1 {[%clk 0:00:09]}  Bf6 {[%clk 0:00:19]} 28. R1d2 {[%clk 0:00:06]}  Rad8 {[%clk 0:00:19]} 29. Rxd8 {[%clk 0:00:04]}  Rxd8 {[%clk 0:00:19]} 30. Rxd8+ {[%clk 0:00:04]}  Bxd8 {[%clk 0:00:20]} 31. f3 {[%clk 0:00:04]}  Kf8 {[%clk 0:00:20]} 32. Kf1 {[%clk 0:00:04]}  Ke7 {[%clk 0:00:20]} 33. Ke2 {[%clk 0:00:04]}  Kd6 {[%clk 0:00:21]} 34. Kd2 {[%clk 0:00:03]}  Kc5 {[%clk 0:00:21]} 35. Kc2 {[%clk 0:00:04]}  Kb4 {[%clk 0:00:21]} 36. Kb2 {[%clk 0:00:04]}  Nc4+ {[%clk 0:00:21]} 37. Kb1 {[%clk 0:00:02]}  Ka3 {[%clk 0:00:21]} 38. g4 {[%clk 0:00:02]}  fxg4 {[%clk 0:00:21]} 39. fxg4 {[%clk 0:00:02]}  Ne5 {[%clk 0:00:21]} 40. h3 {[%clk 0:00:02]}  Nf3 {[%clk 0:00:21]} 0-1


[Site "https://www.chess.com"]

[Event "Titled Tuesday Blitz April 26 Early 2022"]
[White "Moroni, Luca Jr"]
[Black "Karavade, Eesha"]
[WhiteFideId "865834"]
[BlackFideId "5012600"]
[WhiteElo "2805"]
[BlackElo "2544"]
[Result "1-0"]
[Round "04"]
[TimeControl "180+1"]
[Date "2022.04.26"]
[WhiteClock "0:00:46"]
[BlackClock "0:00:51"]

1. d4 {[%clk 0:03:00]}  Nf6 {[%clk 0:02:58]} 2. Bf4 {[%clk 0:02:59]}  d5 {[%clk 0:02:57]} 3. e3 {[%clk 0:03:00]}  c5 {[%clk 0:02:57]} 4. dxc5 {[%clk 0:03:01]}  e6 {[%clk 0:02:50]} 5. b4 {[%clk 0:03:00]}  a5 {[%clk 0:02:49]} 6. c3 {[%clk 0:03:00]}  axb4 {[%clk 0:02:39]} 7. cxb4 {[%clk 0:02:59]}  Nc6 {[%clk 0:02:39]} 8. Bb5 {[%clk 0:02:57]}  Bd7 {[%clk 0:02:35]} 9. Qb3 {[%clk 0:02:56]}  Ne4 {[%clk 0:02:34]} 10. Ne2 {[%clk 0:02:54]}  Qf6 {[%clk 0:02:32]} 11. O-O {[%clk 0:02:48]}  Qxa1 {[%clk 0:02:27]} 12. Nec3 {[%clk 0:02:15]}  Nxc3 {[%clk 0:01:48]} 13. Nxc3 {[%clk 0:02:14]}  Qxf1+ {[%clk 0:01:47]} 14. Bxf1 {[%clk 0:02:08]}  Be7 {[%clk 0:01:46]} 15. a4 {[%clk 0:01:57]}  O-O {[%clk 0:01:45]} 16. a5 {[%clk 0:01:56]}  e5 {[%clk 0:01:39]} 17. Bg3 {[%clk 0:01:50]}  Be6 {[%clk 0:01:39]} 18. Nxd5 {[%clk 0:01:41]}  Rfd8 {[%clk 0:01:32]} 19. Nxe7+ {[%clk 0:01:35]}  Nxe7 {[%clk 0:01:31]} 20. Qa4 {[%clk 0:01:24]}  f6 {[%clk 0:01:30]} 21. h3 {[%clk 0:01:19]}  Rd2 {[%clk 0:01:27]} 22. Qb5 {[%clk 0:01:07]}  Rd1 {[%clk 0:01:15]} 23. Kh2 {[%clk 0:00:57]}  Bd5 {[%clk 0:01:00]} 24. Bc4 {[%clk 0:00:51]}  Bxc4 {[%clk 0:00:56]} 25. Qxc4+ {[%clk 0:00:51]}  Kf8 {[%clk 0:00:57]} 26. Qb5 {[%clk 0:00:51]}  Ra7 {[%clk 0:00:51]} 27. Qb6 {[%clk 0:00:46]} 1-0


[Site "https://www.chess.com"]

[Event "Titled Tuesday Blitz April 26 Early 2022"]
[White "Moussard, Jules"]
[Black "Reprintsev, Alexander"]
[WhiteFideId "642908"]
[BlackFideId "14100541"]
[WhiteElo "2803"]
[BlackElo "2541"]
[Result "1-0"]
[Round "04"]
[TimeControl "180+1"]
[Date "2022.04.26"]
[WhiteClock "0:00:03"]
[BlackClock "0:00:06"]

1. Nf3 {[%clk 0:03:00]}  d5 {[%clk 0:02:56]} 2. g3 {[%clk 0:02:59]}  Nc6 {[%clk 0:02:54]} 3. Bg2 {[%clk 0:03:00]}  Bf5 {[%clk 0:02:54]} 4. c4 {[%clk 0:02:58]}  dxc4 {[%clk 0:02:53]} 5. Qa4 {[%clk 0:02:48]}  Qd7 {[%clk 0:02:53]} 6. Qxc4 {[%clk 0:02:43]}  Nf6 {[%clk 0:02:49]} 7. Nc3 {[%clk 0:02:42]}  e5 {[%clk 0:02:41]} 8. d3 {[%clk 0:02:41]}  Be7 {[%clk 0:02:41]} 9. Bg5 {[%clk 0:02:40]}  O-O {[%clk 0:02:35]} 10. O-O {[%clk 0:02:39]}  a6 {[%clk 0:02:34]} 11. Rfd1 {[%clk 0:02:32]}  h6 {[%clk 0:02:33]} 12. Bxf6 {[%clk 0:02:24]}  Bxf6 {[%clk 0:02:32]} 13. Nd5 {[%clk 0:02:13]}  Bd8 {[%clk 0:02:32]} 14. d4 {[%clk 0:02:01]}  Na5 {[%clk 0:02:02]} 15. Qc5 {[%clk 0:01:48]}  b6 {[%clk 0:02:02]} 16. Nxe5 {[%clk 0:01:17]}  bxc5 {[%clk 0:02:01]} 17. Nxd7 {[%clk 0:01:18]}  Bxd7 {[%clk 0:02:01]} 18. dxc5 {[%clk 0:01:18]}  Bc6 {[%clk 0:01:48]} 19. b4 {[%clk 0:01:18]}  Nc4 {[%clk 0:01:48]} 20. Rac1 {[%clk 0:01:06]}  Ne5 {[%clk 0:01:48]} 21. f4 {[%clk 0:01:05]}  Ng6 {[%clk 0:01:43]} 22. h4 {[%clk 0:00:59]}  Rb8 {[%clk 0:01:31]} 23. a3 {[%clk 0:00:54]}  Re8 {[%clk 0:01:21]} 24. Kf2 {[%clk 0:00:46]}  Ba4 {[%clk 0:01:21]} 25. Rd2 {[%clk 0:00:44]}  Nf8 {[%clk 0:01:20]} 26. e4 {[%clk 0:00:37]}  a5 {[%clk 0:01:05]} 27. bxa5 {[%clk 0:00:30]}  Rb3 {[%clk 0:00:59]} 28. Rc3 {[%clk 0:00:26]}  Ne6 {[%clk 0:00:48]} 29. a6 {[%clk 0:00:20]}  Rxc3 {[%clk 0:00:44]} 30. Nxc3 {[%clk 0:00:20]}  Nxc5 {[%clk 0:00:44]} 31. a7 {[%clk 0:00:20]}  Bc6 {[%clk 0:00:42]} 32. e5 {[%clk 0:00:12]}  Bxg2 {[%clk 0:00:42]} 33. Kxg2 {[%clk 0:00:13]}  Be7 {[%clk 0:00:39]} 34. Rb2 {[%clk 0:00:14]}  Nd7 {[%clk 0:00:34]} 35. Nd5 {[%clk 0:00:13]}  Bxa3 {[%clk 0:00:30]} 36. Ra2 {[%clk 0:00:08]}  Nb6 {[%clk 0:00:23]} 37. Nxc7 {[%clk 0:00:04]}  Rc8 {[%clk 0:00:23]} 38. Rxa3 {[%clk 0:00:02]}  Rxc7 {[%clk 0:00:22]} 39. a8=Q+ {[%clk 0:00:03]}  Nxa8 {[%clk 0:00:22]} 40. Rxa8+ {[%clk 0:00:04]}  Kh7 {[%clk 0:00:22]} 41. Ra2 {[%clk 0:00:04]}  h5 {[%clk 0:00:22]} 42. Ra3 {[%clk 0:00:03]}  Rc1 {[%clk 0:00:20]} 43. Kf3 {[%clk 0:00:03]}  g6 {[%clk 0:00:21]} 44. Ke4 {[%clk 0:00:04]}  Re1+ {[%clk 0:00:21]} 45. Re3 {[%clk 0:00:04]}  Rd1 {[%clk 0:00:20]} 46. Rd3 {[%clk 0:00:04]}  Re1+ {[%clk 0:00:20]} 47. Kd5 {[%clk 0:00:04]}  Kg7 {[%clk 0:00:21]} 48. Kd6 {[%clk 0:00:05]}  Re4 {[%clk 0:00:19]} 49. Ke7 {[%clk 0:00:04]}  Ra4 {[%clk 0:00:18]} 50. Rd7 {[%clk 0:00:04]}  Ra6 {[%clk 0:00:17]} 51. Ke8 {[%clk 0:00:03]}  Re6+ {[%clk 0:00:15]} 52. Re7 {[%clk 0:00:04]}  Ra6 {[%clk 0:00:10]} 53. Rxf7+ {[%clk 0:00:04]}  Kh6 {[%clk 0:00:11]} 54. Rf6 {[%clk 0:00:04]}  Ra3 {[%clk 0:00:11]} 55. e6 {[%clk 0:00:03]}  Rxg3 {[%clk 0:00:11]} 56. e7 {[%clk 0:00:03]}  Ra3 {[%clk 0:00:12]} 57. Kf7 {[%clk 0:00:02]}  Ra7 {[%clk 0:00:12]} 58. Rxg6+ {[%clk 0:00:02]}  Kh7 {[%clk 0:00:12]} 59. Rf6 {[%clk 0:00:03]}  Rc7 {[%clk 0:00:12]} 60. Kf8 {[%clk 0:00:04]}  Rc6 {[%clk 0:00:06]} 61. Rxc6 {[%clk 0:00:03]} 1-0


[Site "https://www.chess.com"]